[Event "*** Titled Tuesday Blitz"]
[Site "Chess.com"]
[Date "2020.12.29"]
[Round "11"]
[White "Leonid_Starozhilov"]
[Black "K_A_S_T_O_R"]
[Result "0-1"]
[WhiteElo "2646"]
[BlackElo "2812"]
[TimeControl "180+1"]
[EndTime "12:05:51 PST"]
[Termination "K_A_S_T_O_R won by resignation"]

1. c4 {[%clk 0:03:00.9]} 1... c5 {[%clk 0:02:57.9]} 2. Nc3 {[%clk 0:03:00]} 2...
Nf6 {[%clk 0:02:58.4]} 3. g3 {[%clk 0:02:59.9]} 3... e6 {[%clk 0:02:58.3]} 4.
Bg2 {[%clk 0:03:00.2]} 4... d5 {[%clk 0:02:57.9]} 5. d3 {[%clk 0:02:58.2]} 5...
d4 {[%clk 0:02:56.7]} 6. Ne4 {[%clk 0:02:58.2]} 6... Nxe4 {[%clk 0:02:55.9]} 7.
Bxe4 {[%clk 0:02:59.1]} 7... Be7 {[%clk 0:02:54.5]} 8. Bg2 {[%clk 0:02:50.2]}
8... O-O {[%clk 0:02:53.3]} 9. Nf3 {[%clk 0:02:49.7]} 9... Nc6 {[%clk
0:02:53.2]} 10. O-O {[%clk 0:02:44.6]} 10... e5 {[%clk 0:02:53.3]} 11. e3 {[%clk
0:02:40.9]} 11... Bg4 {[%clk 0:02:48.4]} 12. exd4 {[%clk 0:02:37.4]} 12... cxd4
{[%clk 0:02:45.1]} 13. Re1 {[%clk 0:02:35.2]} 13... f6 {[%clk 0:02:44]} 14. a3
{[%clk 0:02:34.8]} 14... a5 {[%clk 0:02:43.3]} 15. Rb1 {[%clk 0:02:23.4]} 15...
Qd7 {[%clk 0:02:41.6]} 16. Qc2 {[%clk 0:02:19]} 16... b6 {[%clk 0:02:30.2]} 17.
Bd2 {[%clk 0:02:15.4]} 17... a4 {[%clk 0:02:29.5]} 18. b4 {[%clk 0:01:58.8]}
18... axb3 {[%clk 0:02:28.9]} 19. Rxb3 {[%clk 0:01:59]} 19... Bc5 {[%clk
0:02:16.9]} 20. Bb4 {[%clk 0:01:58.9]} 20... Ra6 {[%clk 0:02:01.7]} 21. Nd2
{[%clk 0:01:50.8]} 21... Rc8 {[%clk 0:01:59.9]} 22. Bxc5 {[%clk 0:01:36.6]}
22... bxc5 {[%clk 0:01:59.7]} 23. Ne4 {[%clk 0:01:35.7]} 23... Nd8 {[%clk
0:01:56.7]} 24. Rb5 {[%clk 0:01:24]} 24... Qe7 {[%clk 0:01:55.6]} 25. Qb2 {[%clk
0:00:59.5]} 25... Bd7 {[%clk 0:01:50]} 26. Rb6 {[%clk 0:00:48.9]} 26... Rxb6
{[%clk 0:01:44.3]} 27. Qxb6 {[%clk 0:00:49.8]} 27... Bc6 {[%clk 0:01:44.5]} 28.
Bh3 {[%clk 0:00:34.7]} 28... Ra8 {[%clk 0:01:37.3]} 29. Nxc5 {[%clk 0:00:19.2]}
29... Rxa3 {[%clk 0:01:19.4]} 30. Ne6 {[%clk 0:00:17.1]} 30... Bd7 {[%clk
0:01:14.7]} 31. Nxd8 {[%clk 0:00:07.6]} 31... Bxh3 {[%clk 0:01:13.4]} 32. Qb8
{[%clk 0:00:08.1]} 32... Qe8 {[%clk 0:01:07.8]} 33. Qd6 {[%clk 0:00:06.2]} 33...
Ra7 {[%clk 0:01:06.2]} 34. Nc6 {[%clk 0:00:01.8]} 34... Rd7 {[%clk 0:01:03.9]}
35. Qb4 {[%clk 0:00:02.2]} 35... Rc7 {[%clk 0:01:00.9]} 36. Nxd4 {[%clk
0:00:02.5]} 36... Qa8 {[%clk 0:00:57.3]} 37. Re4 {[%clk 0:00:02.6]} 37... exd4
{[%clk 0:00:51.3]} 38. Qe1 {[%clk 0:00:03.3]} 38... Rc8 {[%clk 0:00:50.4]} 39.
f3 {[%clk 0:00:03]} 39... Bf5 {[%clk 0:00:47.3]} 40. Rxd4 {[%clk 0:00:03.4]}
40... Qxf3 {[%clk 0:00:45.3]} 41. Qf2 {[%clk 0:00:03.8]} 41... Qd1+ {[%clk
0:00:40.1]} 42. Kg2 {[%clk 0:00:03.7]} 42... Bg6 {[%clk 0:00:37.1]} 43. h4
{[%clk 0:00:01.5]} 43... Bxd3 {[%clk 0:00:33.6]} 44. Qe3 {[%clk 0:00:01.7]}
44... Qf1+ {[%clk 0:00:32.3]} 45. Kh2 {[%clk 0:00:02.3]} 45... Qe2+ {[%clk
0:00:30.7]} 46. Qxe2 {[%clk 0:00:02.5]} 46... Bxe2 {[%clk 0:00:30.8]} 0-1

[Event "*** Titled Tuesday Blitz"]
[Site "Chess.com"]
[Date "2020.12.29"]
[Round "11"]
[White "Chopper1905"]
[Black "JoAttack"]
[Result "1-0"]
[WhiteElo "2920"]
[BlackElo "2172"]
[TimeControl "180+1"]
[EndTime "12:05:51 PST"]
[Termination "Chopper1905 won on time"]

1. g4 {[%clk 0:03:00.9]} 1... d5 {[%clk 0:02:58.1]} 2. Bg2 {[%clk 0:03:00.7]}
2... c6 {[%clk 0:02:57.8]} 3. c4 {[%clk 0:03:00.8]} 3... g6 {[%clk 0:02:55.6]}
4. cxd5 {[%clk 0:02:58.4]} 4... cxd5 {[%clk 0:02:55]} 5. Qb3 {[%clk 0:02:59.1]}
5... e6 {[%clk 0:02:48.8]} 6. d4 {[%clk 0:02:58.8]} 6... Bg7 {[%clk 0:02:45.4]}
7. Nf3 {[%clk 0:02:55.3]} 7... Nc6 {[%clk 0:02:43.9]} 8. e3 {[%clk 0:02:54.8]}
8... Nf6 {[%clk 0:02:41.1]} 9. h3 {[%clk 0:02:52.3]} 9... Ne4 {[%clk 0:02:39]}
10. Nbd2 {[%clk 0:02:51.7]} 10... O-O {[%clk 0:02:34.6]} 11. O-O {[%clk
0:02:51.4]} 11... f5 {[%clk 0:02:28.2]} 12. Ne1 {[%clk 0:02:34.4]} 12... fxg4
{[%clk 0:02:22.6]} 13. hxg4 {[%clk 0:02:34.5]} 13... Qh4 {[%clk 0:02:10.5]} 14.
Nxe4 {[%clk 0:02:32.6]} 14... dxe4 {[%clk 0:02:09]} 15. Bxe4 {[%clk 0:02:31.1]}
15... Qxg4+ {[%clk 0:02:08]} 16. Bg2 {[%clk 0:02:31.3]} 16... Kh8 {[%clk
0:02:04.7]} 17. f3 {[%clk 0:02:15.6]} 17... Qg3 {[%clk 0:02:03.4]} 18. f4 {[%clk
0:02:13.5]} 18... e5 {[%clk 0:01:50.6]} 19. dxe5 {[%clk 0:02:09.2]} 19... Bh3
{[%clk 0:01:41.3]} 20. Bd2 {[%clk 0:01:56.2]} 20... Nxe5 {[%clk 0:01:34]} 21. e4
{[%clk 0:01:17.6]} 21... Qxb3 {[%clk 0:01:22]} 22. axb3 {[%clk 0:01:18.5]} 22...
Bxg2 {[%clk 0:01:21]} 23. Kxg2 {[%clk 0:01:18.2]} 23... Nc6 {[%clk 0:01:10.8]}
24. Bc3 {[%clk 0:01:18.4]} 24... Rae8 {[%clk 0:01:03.4]} 25. Bxg7+ {[%clk
0:01:01.2]} 25... Kxg7 {[%clk 0:01:02.1]} 26. e5 {[%clk 0:01:02.1]} 26... a6
{[%clk 0:00:59.6]} 27. Rd1 {[%clk 0:00:58.7]} 27... Rf7 {[%clk 0:00:52.8]} 28.
Nd3 {[%clk 0:00:56.3]} 28... Nd4 {[%clk 0:00:48.1]} 29. Nc5 {[%clk 0:00:55.6]}
29... Nf5 {[%clk 0:00:46]} 30. Rd3 {[%clk 0:00:52.6]} 30... Nh4+ {[%clk
0:00:36.4]} 31. Kh3 {[%clk 0:00:50.9]} 31... Nf5 {[%clk 0:00:34]} 32. Rfd1
{[%clk 0:00:49.9]} 32... Ree7 {[%clk 0:00:20.2]} 33. Ne4 {[%clk 0:00:45.8]}
33... h6 {[%clk 0:00:16.3]} 34. b4 {[%clk 0:00:35.7]} 34... Rc7 {[%clk
0:00:11.7]} 35. Nc5 {[%clk 0:00:28]} 35... Rce7 {[%clk 0:00:10.1]} 36. Rd8
{[%clk 0:00:24.9]} 36... g5 {[%clk 0:00:08.1]} 37. e6 {[%clk 0:00:22.1]} 37...
Rf6 {[%clk 0:00:06.9]} 38. fxg5 {[%clk 0:00:20.4]} 38... hxg5 {[%clk 0:00:06]}
39. R1d7 {[%clk 0:00:21.3]} 39... Kg6 {[%clk 0:00:02.4]} 40. Kg4 {[%clk
0:00:22.2]} 40... Nh6+ {[%clk 0:00:01.6]} 41. Kg3 {[%clk 0:00:21.6]} 1-0

[Event "*** Titled Tuesday Blitz"]
[Site "Chess.com"]
[Date "2020.12.29"]
[Round "11"]
[White "Vyacheslav_N"]
[Black "arna"]
[Result "1-0"]
[WhiteElo "2449"]
[BlackElo "2173"]
[TimeControl "180+1"]
[EndTime "12:05:52 PST"]
[Termination "Vyacheslav_N won on time"]

1. e4 {[%clk 0:02:58.2]} 1... e6 {[%clk 0:02:55.1]} 2. d4 {[%clk 0:02:55.8]}
2... d5 {[%clk 0:02:55.1]} 3. Nd2 {[%clk 0:02:56.5]} 3... Nf6 {[%clk 0:02:53]}
4. e5 {[%clk 0:02:56.2]} 4... Nfd7 {[%clk 0:02:53.5]} 5. f4 {[%clk 0:02:56.7]}
5... c5 {[%clk 0:02:52.9]} 6. c3 {[%clk 0:02:57.6]} 6... Nc6 {[%clk 0:02:52.4]}
7. Ndf3 {[%clk 0:02:58]} 7... f6 {[%clk 0:02:12.9]} 8. Bd3 {[%clk 0:02:50.7]}
8... cxd4 {[%clk 0:02:01]} 9. cxd4 {[%clk 0:02:50.6]} 9... Bb4+ {[%clk
0:01:31.1]} 10. Bd2 {[%clk 0:02:30.1]} 10... Bxd2+ {[%clk 0:01:29]} 11. Qxd2
{[%clk 0:02:31]} 11... f5 {[%clk 0:01:18]} 12. Ne2 {[%clk 0:02:30.3]} 12... Qb6
{[%clk 0:01:09.1]} 13. a3 {[%clk 0:02:29.5]} 13... Nf8 {[%clk 0:01:04.7]} 14. h3
{[%clk 0:02:27.8]} 14... Na5 {[%clk 0:00:54.7]} 15. Qb4 {[%clk 0:02:18.5]} 15...
Qxb4+ {[%clk 0:00:33.2]} 16. axb4 {[%clk 0:02:19.4]} 16... Nc4 {[%clk
0:00:33.9]} 17. b3 {[%clk 0:02:06.5]} 17... Nb6 {[%clk 0:00:28.2]} 18. g4 {[%clk
0:02:03.9]} 18... g6 {[%clk 0:00:26.6]} 19. Kd2 {[%clk 0:01:59.9]} 19... Bd7
{[%clk 0:00:24.9]} 20. Rhc1 {[%clk 0:01:56.5]} 20... Kd8 {[%clk 0:00:22.4]} 21.
Ng5 {[%clk 0:01:52.9]} 21... Be8 {[%clk 0:00:18.6]} 22. b5 {[%clk 0:01:38.8]}
22... h6 {[%clk 0:00:18.2]} 23. Nf3 {[%clk 0:01:37.8]} 23... Nc8 {[%clk
0:00:17.1]} 24. gxf5 {[%clk 0:01:14.9]} 24... exf5 {[%clk 0:00:16.7]} 25. Nh4
{[%clk 0:01:13.5]} 25... Ne6 {[%clk 0:00:15.5]} 26. Rg1 {[%clk 0:01:11.4]} 26...
Ne7 {[%clk 0:00:15.5]} 27. Ra2 {[%clk 0:01:05.1]} 27... Kc7 {[%clk 0:00:15.2]}
28. Rga1 {[%clk 0:01:01.2]} 28... Kb6 {[%clk 0:00:15.7]} 29. Ng2 {[%clk
0:01:01.3]} 29... Rg8 {[%clk 0:00:09.7]} 30. Ne3 {[%clk 0:01:01.3]} 30... Bd7
{[%clk 0:00:08.1]} 31. h4 {[%clk 0:01:00.1]} 31... Rgf8 {[%clk 0:00:08]} 32. Rg1
{[%clk 0:00:55.5]} 32... Rg8 {[%clk 0:00:07.3]} 33. h5 {[%clk 0:00:54.7]} 33...
gxh5 {[%clk 0:00:06.2]} 34. Nxf5 {[%clk 0:00:54.6]} 34... Nxf5 {[%clk 0:00:06]}
35. Bxf5 {[%clk 0:00:55.5]} 35... Raf8 {[%clk 0:00:05.9]} 36. Rxg8 {[%clk
0:00:50.2]} 36... Rxg8 {[%clk 0:00:05.8]} 37. Bd3 {[%clk 0:00:48.7]} 37... Rg2
{[%clk 0:00:05.1]} 38. Ke3 {[%clk 0:00:48.5]} 38... Bxb5 {[%clk 0:00:03.3]} 39.
Bxb5 {[%clk 0:00:47.2]} 39... Kxb5 {[%clk 0:00:04.2]} 40. Rxa7 {[%clk
0:00:46.6]} 40... Rxe2+ {[%clk 0:00:02.8]} 41. Kxe2 {[%clk 0:00:46.1]} 41...
Nxf4+ {[%clk 0:00:03.7]} 42. Ke3 {[%clk 0:00:44.1]} 42... Ng2+ {[%clk
0:00:01.7]} 43. Kf3 {[%clk 0:00:42.2]} 43... Ne1+ {[%clk 0:00:02.2]} 44. Ke2
{[%clk 0:00:42.2]} 44... Nc2 {[%clk 0:00:02.3]} 45. Kd3 {[%clk 0:00:40.5]} 45...
Nb4+ {[%clk 0:00:02.6]} 46. Kc3 {[%clk 0:00:38.1]} 46... Nc6 {[%clk 0:00:02.9]}
47. Rxb7+ {[%clk 0:00:36.4]} 47... Ka6 {[%clk 0:00:03.8]} 48. Rh7 {[%clk
0:00:35]} 1-0

[Event "*** Titled Tuesday Blitz"]
[Site "Chess.com"]
[Date "2020.12.29"]
[Round "11"]
[White "Tagliata"]
[Black "J36225"]
[Result "0-1"]
[WhiteElo "2317"]
[BlackElo "2468"]
[TimeControl "180+1"]
[EndTime "12:05:54 PST"]
[Termination "J36225 won by resignation"]

1. e4 {[%clk 0:03:00.9]} 1... e5 {[%clk 0:02:58.9]} 2. d4 {[%clk 0:03:00.4]}
2... exd4 {[%clk 0:02:58.4]} 3. c3 {[%clk 0:03:00.7]} 3... dxc3 {[%clk
0:02:58.2]} 4. Nxc3 {[%clk 0:03:00.8]} 4... Bb4 {[%clk 0:02:56.3]} 5. Bc4 {[%clk
0:02:58.5]} 5... Nf6 {[%clk 0:02:55.1]} 6. Bxf7+ {[%clk 0:02:55.7]} 6... Kxf7
{[%clk 0:02:47.1]} 7. Qb3+ {[%clk 0:02:55.7]} 7... d5 {[%clk 0:02:41.2]} 8. Qxb4
{[%clk 0:02:54.3]} 8... Nc6 {[%clk 0:02:40.4]} 9. Qb3 {[%clk 0:02:44.4]} 9...
Re8 {[%clk 0:02:36.3]} 10. Nf3 {[%clk 0:02:33.2]} 10... Be6 {[%clk 0:02:28.2]}
11. Ng5+ {[%clk 0:02:24.3]} 11... Kg8 {[%clk 0:02:27]} 12. Nxe6 {[%clk
0:02:23.5]} 12... Rxe6 {[%clk 0:02:26.1]} 13. O-O {[%clk 0:02:20.3]} 13... Nxe4
{[%clk 0:02:24.3]} 14. Qxd5 {[%clk 0:02:06.7]} 14... Qxd5 {[%clk 0:01:52.4]} 15.
Nxd5 {[%clk 0:02:05.8]} 15... Rd8 {[%clk 0:01:47.9]} 16. Nxc7 {[%clk 0:01:54]}
16... Rg6 {[%clk 0:01:45.1]} 17. Be3 {[%clk 0:01:40.5]} 17... Ne5 {[%clk
0:01:20.7]} 18. Rad1 {[%clk 0:01:34.2]} 18... Rxd1 {[%clk 0:01:12.8]} 19. Rxd1
{[%clk 0:01:33.4]} 19... b6 {[%clk 0:01:06.9]} 20. h3 {[%clk 0:01:28.8]} 20...
Nf3+ {[%clk 0:00:48.7]} 21. Kf1 {[%clk 0:01:25.6]} 21... Ne5 {[%clk 0:00:40.8]}
22. f3 {[%clk 0:01:01.9]} 22... Nc4 {[%clk 0:00:35.2]} 23. Bd4 {[%clk
0:00:45.3]} 23... Ng3+ {[%clk 0:00:33.7]} 24. Kf2 {[%clk 0:00:44.3]} 24... Nf5
{[%clk 0:00:33.2]} 25. Bc3 {[%clk 0:00:39.9]} 25... Rxg2+ {[%clk 0:00:30.9]} 26.
Kxg2 {[%clk 0:00:38]} 26... Nfe3+ {[%clk 0:00:30.6]} 27. Kf2 {[%clk 0:00:36.6]}
27... Nxd1+ {[%clk 0:00:31.5]} 28. Ke2 {[%clk 0:00:30]} 28... Ndxb2 {[%clk
0:00:30.6]} 29. Nb5 {[%clk 0:00:25.2]} 29... Na4 {[%clk 0:00:28.2]} 30. Bd4
{[%clk 0:00:22.2]} 30... a6 {[%clk 0:00:27.9]} 31. Nc7 {[%clk 0:00:21.3]} 31...
b5 {[%clk 0:00:17.8]} 32. Nxa6 {[%clk 0:00:20]} 32... Nab6 {[%clk 0:00:15.7]}
33. Bxb6 {[%clk 0:00:18.9]} 33... Nxb6 {[%clk 0:00:15.4]} 34. Nc7 {[%clk
0:00:19.3]} 34... b4 {[%clk 0:00:15.5]} 35. Na6 {[%clk 0:00:19.3]} 35... Nd5
{[%clk 0:00:14.8]} 36. Kd3 {[%clk 0:00:19.4]} 36... Kf7 {[%clk 0:00:12.9]} 37.
Kc4 {[%clk 0:00:18]} 37... Nc3 {[%clk 0:00:12.7]} 38. a3 {[%clk 0:00:17.1]}
38... bxa3 {[%clk 0:00:09.2]} 39. Kxc3 {[%clk 0:00:16.9]} 39... Kf6 {[%clk
0:00:10.1]} 40. Kd4 {[%clk 0:00:15.4]} 40... a2 {[%clk 0:00:09.3]} 41. Nb4
{[%clk 0:00:13.7]} 41... a1=Q+ {[%clk 0:00:08.3]} 0-1

[Event "*** Titled Tuesday Blitz"]
[Site "Chess.com"]
[Date "2020.12.29"]
[Round "11"]
[White "frederiksvane"]
[Black "MaevskiyNikolay"]
[Result "1-0"]
[WhiteElo "2741"]
[BlackElo "2592"]
[TimeControl "180+1"]
[EndTime "12:05:55 PST"]
[Termination "frederiksvane won on time"]

1. e4 {[%clk 0:03:00.9]} 1... c6 {[%clk 0:02:59.9]} 2. d4 {[%clk 0:02:41.7]}
2... d5 {[%clk 0:02:58.8]} 3. exd5 {[%clk 0:02:42.6]} 3... cxd5 {[%clk
0:02:58.7]} 4. Bd3 {[%clk 0:02:42.9]} 4... Nc6 {[%clk 0:02:57.7]} 5. c3 {[%clk
0:02:42.8]} 5... Qc7 {[%clk 0:02:52.9]} 6. h3 {[%clk 0:02:37.6]} 6... e5 {[%clk
0:02:49.4]} 7. dxe5 {[%clk 0:02:36.7]} 7... Nxe5 {[%clk 0:02:30]} 8. Nf3 {[%clk
0:02:36.7]} 8... Nxf3+ {[%clk 0:02:25.7]} 9. Qxf3 {[%clk 0:02:34.7]} 9... Nf6
{[%clk 0:02:16.8]} 10. O-O {[%clk 0:02:32.7]} 10... Be7 {[%clk 0:02:16.9]} 11.
Bf4 {[%clk 0:02:29.6]} 11... Qd8 {[%clk 0:02:14]} 12. Nd2 {[%clk 0:02:28.5]}
12... O-O {[%clk 0:02:13.5]} 13. Nb3 {[%clk 0:02:27.4]} 13... a6 {[%clk
0:02:08.8]} 14. Rfe1 {[%clk 0:02:25.5]} 14... Re8 {[%clk 0:01:43.6]} 15. Rad1
{[%clk 0:02:23.4]} 15... Bd7 {[%clk 0:01:38.5]} 16. Be5 {[%clk 0:02:16.7]} 16...
Bc6 {[%clk 0:01:34.2]} 17. Nd4 {[%clk 0:02:16.7]} 17... Rc8 {[%clk 0:01:25.8]}
18. Nf5 {[%clk 0:01:59.5]} 18... d4 {[%clk 0:00:48]} 19. Qg3 {[%clk 0:01:36]}
19... Nh5 {[%clk 0:00:46.3]} 20. Qg4 {[%clk 0:01:33.8]} 20... g6 {[%clk
0:00:42]} 21. Nxd4 {[%clk 0:01:24]} 21... Bd6 {[%clk 0:00:22.9]} 22. Bf5 {[%clk
0:00:43.1]} 22... Rxe5 {[%clk 0:00:10.9]} 23. Rxe5 {[%clk 0:00:37.9]} 23... Bxe5
{[%clk 0:00:11.1]} 24. Nxc6 {[%clk 0:00:38.5]} 24... Qc7 {[%clk 0:00:09.5]} 25.
Nxe5 {[%clk 0:00:35.3]} 25... Re8 {[%clk 0:00:06.9]} 26. Nf3 {[%clk 0:00:27.7]}
26... Nf6 {[%clk 0:00:06.7]} 27. Qg5 {[%clk 0:00:27.9]} 27... Kg7 {[%clk
0:00:04.4]} 28. Bd3 {[%clk 0:00:26.9]} 28... Qe7 {[%clk 0:00:04.4]} 29. Bf1
{[%clk 0:00:26.1]} 29... h6 {[%clk 0:00:04]} 30. Qd2 {[%clk 0:00:25.5]} 30...
Qe6 {[%clk 0:00:04.3]} 31. Re1 {[%clk 0:00:25.3]} 31... Qxa2 {[%clk 0:00:03.9]}
32. Rxe8 {[%clk 0:00:25.9]} 32... Nxe8 {[%clk 0:00:04.1]} 33. Qd4+ {[%clk
0:00:26.6]} 33... Nf6 {[%clk 0:00:04.4]} 34. Ne5 {[%clk 0:00:25.3]} 34... Qe6
{[%clk 0:00:03.5]} 35. Bc4 {[%clk 0:00:24.3]} 35... Qf5 {[%clk 0:00:03.8]} 36.
Nxf7 {[%clk 0:00:22.4]} 36... Qb1+ {[%clk 0:00:03.6]} 37. Kh2 {[%clk 0:00:22.3]}
37... Qxb2 {[%clk 0:00:04]} 38. Nd6 {[%clk 0:00:22]} 38... Qb1 {[%clk
0:00:02.4]} 39. Ne8+ {[%clk 0:00:22.1]} 39... Kf8 {[%clk 0:00:02.5]} 40. Nxf6
{[%clk 0:00:17.3]} 40... Qf5 {[%clk 0:00:01.7]} 41. Qd6+ {[%clk 0:00:17.3]} 1-0

[Event "*** Titled Tuesday Blitz"]
[Site "Chess.com"]
[Date "2020.12.29"]
[Round "11"]
[White "JoachimMouhamad"]
[Black "QuintilianoR"]
[Result "0-1"]
[WhiteElo "2400"]
[BlackElo "2665"]
[TimeControl "180+1"]
[EndTime "12:05:57 PST"]
[Termination "QuintilianoR won on time"]

1. e4 {[%clk 0:03:00.9]} 1... c5 {[%clk 0:02:59.8]} 2. Nf3 {[%clk 0:03:00.7]}
2... d6 {[%clk 0:03:00.3]} 3. d4 {[%clk 0:03:01.2]} 3... cxd4 {[%clk 0:03:00.8]}
4. Nxd4 {[%clk 0:03:02.1]} 4... Nf6 {[%clk 0:03:01.3]} 5. Nc3 {[%clk 0:03:01.4]}
5... a6 {[%clk 0:03:01.8]} 6. f3 {[%clk 0:03:00.7]} 6... e5 {[%clk 0:03:01.5]}
7. Nb3 {[%clk 0:03:00.3]} 7... Be6 {[%clk 0:03:02.1]} 8. Be3 {[%clk 0:03:00.1]}
8... h5 {[%clk 0:02:59.2]} 9. Qd2 {[%clk 0:02:57.5]} 9... Nbd7 {[%clk
0:02:57.4]} 10. Nd5 {[%clk 0:02:58.1]} 10... Bxd5 {[%clk 0:02:56.9]} 11. exd5
{[%clk 0:02:59]} 11... g6 {[%clk 0:02:57.2]} 12. Be2 {[%clk 0:02:59.2]} 12...
Bg7 {[%clk 0:02:57]} 13. Na5 {[%clk 0:02:57.5]} 13... Qc7 {[%clk 0:02:50]} 14.
O-O {[%clk 0:02:50.7]} 14... O-O {[%clk 0:02:45.6]} 15. c4 {[%clk 0:02:49.6]}
15... Rfe8 {[%clk 0:02:29]} 16. h3 {[%clk 0:02:33.5]} 16... b6 {[%clk
0:02:12.1]} 17. Nc6 {[%clk 0:02:32.3]} 17... Nb8 {[%clk 0:02:10.5]} 18. Nb4
{[%clk 0:02:23]} 18... a5 {[%clk 0:01:54.8]} 19. Nc2 {[%clk 0:02:22.3]} 19...
Nbd7 {[%clk 0:01:54.3]} 20. Na3 {[%clk 0:02:22]} 20... Nc5 {[%clk 0:01:54.4]}
21. Nb5 {[%clk 0:02:21.9]} 21... Qd7 {[%clk 0:01:50.9]} 22. b3 {[%clk
0:02:18.1]} 22... Nh7 {[%clk 0:01:40.6]} 23. Rab1 {[%clk 0:02:17.3]} 23... f5
{[%clk 0:01:34.7]} 24. a3 {[%clk 0:02:11.1]} 24... e4 {[%clk 0:01:33.6]} 25. b4
{[%clk 0:02:05.2]} 25... axb4 {[%clk 0:01:32.3]} 26. axb4 {[%clk 0:02:06.1]}
26... exf3 {[%clk 0:01:31.2]} 27. Bxf3 {[%clk 0:01:58.3]} 27... Ne4 {[%clk
0:01:29.6]} 28. Bxe4 {[%clk 0:01:27.5]} 28... Rxe4 {[%clk 0:01:30.5]} 29. Bd4
{[%clk 0:01:14.8]} 29... Qe7 {[%clk 0:00:52.3]} 30. Bxg7 {[%clk 0:01:12.8]}
30... Kxg7 {[%clk 0:00:53.2]} 31. Rbe1 {[%clk 0:01:06.5]} 31... Re8 {[%clk
0:00:32.5]} 32. Rxe4 {[%clk 0:00:53.2]} 32... fxe4 {[%clk 0:00:33.4]} 33. Nd4
{[%clk 0:00:40.9]} 33... Nf8 {[%clk 0:00:28.9]} 34. Qe3 {[%clk 0:00:33.5]} 34...
Kg8 {[%clk 0:00:26.9]} 35. Rf4 {[%clk 0:00:31.2]} 35... Qe5 {[%clk 0:00:24.2]}
36. Ne2 {[%clk 0:00:22.6]} 36... b5 {[%clk 0:00:20.5]} 37. cxb5 {[%clk
0:00:21.3]} 37... Qxd5 {[%clk 0:00:20.6]} 38. b6 {[%clk 0:00:21.5]} 38... Nd7
{[%clk 0:00:19]} 39. Nc3 {[%clk 0:00:20]} 39... Qd3 {[%clk 0:00:18.9]} 40. Rxe4
{[%clk 0:00:15.8]} 40... Qxe3+ {[%clk 0:00:18.3]} 41. Rxe3 {[%clk 0:00:14.5]}
41... Rxe3 {[%clk 0:00:19.2]} 42. Nd5 {[%clk 0:00:15.1]} 42... Rb3 {[%clk
0:00:19.1]} 43. b7 {[%clk 0:00:13.6]} 43... Nb8 {[%clk 0:00:19.6]} 44. Kf2
{[%clk 0:00:11.8]} 44... Kf7 {[%clk 0:00:20.2]} 0-1

[Event "*** Titled Tuesday Blitz"]
[Site "Chess.com"]
[Date "2020.12.29"]
[Round "11"]
[White "lelajavakhishvili"]
[Black "mbojan"]
[Result "0-1"]
[WhiteElo "2515"]
[BlackElo "2678"]
[TimeControl "180+1"]
[EndTime "12:05:59 PST"]
[Termination "mbojan won by resignation"]

1. d4 {[%clk 0:03:00.9]} 1... g6 {[%clk 0:02:47.7]} 2. c4 {[%clk 0:03:00.1]}
2... Bg7 {[%clk 0:02:47.9]} 3. e4 {[%clk 0:03:00.3]} 3... d6 {[%clk 0:02:48.2]}
4. Nc3 {[%clk 0:02:59.2]} 4... e5 {[%clk 0:02:41.4]} 5. dxe5 {[%clk 0:02:57.6]}
5... dxe5 {[%clk 0:02:42.3]} 6. Qxd8+ {[%clk 0:02:56.4]} 6... Kxd8 {[%clk
0:02:42.5]} 7. Bg5+ {[%clk 0:02:55.2]} 7... f6 {[%clk 0:02:42.3]} 8. O-O-O+
{[%clk 0:02:55.1]} 8... Nd7 {[%clk 0:02:42.8]} 9. Be3 {[%clk 0:02:54.3]} 9...
Bh6 {[%clk 0:02:43.3]} 10. Bxh6 {[%clk 0:02:36.5]} 10... Nxh6 {[%clk 0:02:44.2]}
11. h4 {[%clk 0:02:34.2]} 11... c6 {[%clk 0:02:41.5]} 12. h5 {[%clk 0:02:30.9]}
12... g5 {[%clk 0:02:40.7]} 13. Nge2 {[%clk 0:02:27.3]} 13... Ke7 {[%clk
0:02:40.1]} 14. Ng3 {[%clk 0:02:23.8]} 14... Nc5 {[%clk 0:02:38.8]} 15. Be2
{[%clk 0:02:05.5]} 15... a5 {[%clk 0:02:37.9]} 16. Rd2 {[%clk 0:02:01.2]} 16...
Be6 {[%clk 0:02:37.5]} 17. Rhd1 {[%clk 0:01:59.8]} 17... Rhd8 {[%clk 0:02:36.5]}
18. Rxd8 {[%clk 0:01:56.1]} 18... Rxd8 {[%clk 0:02:37.4]} 19. Rxd8 {[%clk
0:01:56]} 19... Kxd8 {[%clk 0:02:38.3]} 20. Kd2 {[%clk 0:01:55.7]} 20... Kc7
{[%clk 0:02:34.5]} 21. Ke3 {[%clk 0:01:51.7]} 21... Kd6 {[%clk 0:02:34.2]} 22.
b3 {[%clk 0:01:49.4]} 22... Bc8 {[%clk 0:02:29.7]} 23. Bd1 {[%clk 0:01:48.4]}
23... Ne6 {[%clk 0:02:23.6]} 24. a3 {[%clk 0:01:47.1]} 24... Nd4 {[%clk
0:02:08.7]} 25. b4 {[%clk 0:01:46.4]} 25... axb4 {[%clk 0:02:09]} 26. axb4
{[%clk 0:01:46.1]} 26... Be6 {[%clk 0:02:07.8]} 27. c5+ {[%clk 0:01:38.9]} 27...
Ke7 {[%clk 0:02:08.1]} 28. f3 {[%clk 0:01:17.2]} 28... Nf7 {[%clk 0:02:03.4]}
29. Nce2 {[%clk 0:01:12.9]} 29... Nxe2 {[%clk 0:01:47.1]} 30. Nxe2 {[%clk
0:01:11.9]} 30... g4 {[%clk 0:01:22]} 31. f4 {[%clk 0:01:03.1]} 31... exf4+
{[%clk 0:01:22.9]} 32. Kxf4 {[%clk 0:01:02.7]} 32... Ne5 {[%clk 0:01:20.6]} 33.
Nd4 {[%clk 0:01:00.5]} 33... Nd3+ {[%clk 0:01:17.8]} 34. Kg3 {[%clk 0:00:57.2]}
34... Nxb4 {[%clk 0:00:56.5]} 35. Bxg4 {[%clk 0:00:56.6]} 35... Bxg4 {[%clk
0:00:49.1]} 36. Kxg4 {[%clk 0:00:57.5]} 36... Nd3 {[%clk 0:00:48.5]} 37. Kf5
{[%clk 0:00:41.1]} 37... Nxc5 {[%clk 0:00:43.8]} 38. g4 {[%clk 0:00:39.8]} 38...
Nd7 {[%clk 0:00:37.5]} 39. g5 {[%clk 0:00:37.7]} 39... fxg5 {[%clk 0:00:37.2]}
40. Kxg5 {[%clk 0:00:37.7]} 40... c5 {[%clk 0:00:33.7]} 41. Nb5 {[%clk
0:00:33.2]} 41... Ke6 {[%clk 0:00:31.5]} 42. Kh6 {[%clk 0:00:29.5]} 42... Nf6
{[%clk 0:00:31.5]} 43. Nc3 {[%clk 0:00:27.3]} 43... Ke5 {[%clk 0:00:28.5]} 44.
Nd5 {[%clk 0:00:25.5]} 44... Nxd5 {[%clk 0:00:19.2]} 45. exd5 {[%clk 0:00:25.1]}
45... c4 {[%clk 0:00:19.6]} 46. Kxh7 {[%clk 0:00:21.4]} 46... c3 {[%clk
0:00:19.6]} 47. h6 {[%clk 0:00:20.3]} 47... c2 {[%clk 0:00:19.6]} 48. Kg8 {[%clk
0:00:20.4]} 48... c1=Q {[%clk 0:00:19.2]} 49. h7 {[%clk 0:00:21.3]} 49... Qg5+
{[%clk 0:00:19.2]} 50. Kf7 {[%clk 0:00:20.9]} 50... Qh6 {[%clk 0:00:19.3]} 51.
Kg8 {[%clk 0:00:20.8]} 51... Qg6+ {[%clk 0:00:19.8]} 0-1